[Event "Early-Titled-Tuesday-Blitz-January-16-2024"]
[Site "Chess.com"]
[Date "2024.01.16"]
[Round "6"]
[White "scarabee43"]
[Black "sergeikim"]
[Result "1-0"]
[WhiteElo "2811"]
[BlackElo "2614"]
[TimeControl "180+1"]
[EndTime "9:10:47 PST"]
[Termination "scarabee43 won by resignation"]

1. Nf3 {[%clk 0:03:00.9]} 1... Nf6 {[%clk 0:02:58.5]} 2. c4 {[%clk 0:03:01.3]}
2... g6 {[%clk 0:02:58.5]} 3. Nc3 {[%clk 0:03:01.5]} 3... Bg7 {[%clk 0:02:58.7]}
4. e4 {[%clk 0:03:01.9]} 4... d6 {[%clk 0:02:58.9]} 5. d4 {[%clk 0:03:02]} 5...
O-O {[%clk 0:02:58.9]} 6. Bg5 {[%clk 0:02:56.8]} 6... Nbd7 {[%clk 0:02:53.1]} 7.
Be2 {[%clk 0:02:54.9]} 7... e5 {[%clk 0:02:53.2]} 8. O-O {[%clk 0:02:52.5]} 8...
exd4 {[%clk 0:02:52.8]} 9. Nxd4 {[%clk 0:02:52.9]} 9... Re8 {[%clk 0:02:52.2]}
10. Qd2 {[%clk 0:02:47.3]} 10... c6 {[%clk 0:02:52.3]} 11. Rad1 {[%clk
0:02:44.7]} 11... a5 {[%clk 0:02:48.3]} 12. Rfe1 {[%clk 0:02:43]} 12... a4
{[%clk 0:02:47.7]} 13. Bf1 {[%clk 0:02:40.6]} 13... Qa5 {[%clk 0:02:47.1]} 14.
Nc2 {[%clk 0:02:32.9]} 14... Re6 {[%clk 0:02:42.8]} 15. Bh4 {[%clk 0:02:17.1]}
15... Nc5 {[%clk 0:02:39.2]} 16. f3 {[%clk 0:02:15]} 16... Nfd7 {[%clk
0:02:34.8]} 17. Bf2 {[%clk 0:02:09.6]} 17... Ne5 {[%clk 0:02:31.4]} 18. h3
{[%clk 0:02:03.7]} 18... Ned7 {[%clk 0:02:04.8]} 19. Bg3 {[%clk 0:01:53.5]}
19... Ne5 {[%clk 0:02:03.9]} 20. f4 {[%clk 0:01:51]} 20... Ned7 {[%clk
0:02:03.3]} 21. f5 {[%clk 0:01:50]} 21... Re8 {[%clk 0:02:02.8]} 22. Bxd6 {[%clk
0:01:49.4]} 22... Qb6 {[%clk 0:01:53.8]} 23. Kh2 {[%clk 0:01:15.5]} 23... Qxb2
{[%clk 0:01:51.8]} 24. e5 {[%clk 0:01:08.2]} 24... Qb6 {[%clk 0:01:42.9]} 25. f6
{[%clk 0:01:07.1]} 25... Bf8 {[%clk 0:01:33.4]} 26. Qd4 {[%clk 0:00:47]} 26...
Ne6 {[%clk 0:01:18.3]} 27. Qxb6 {[%clk 0:00:43.3]} 27... Nxb6 {[%clk 0:01:18]}
28. Ne4 {[%clk 0:00:41]} 28... Nd7 {[%clk 0:01:11.5]} 29. Ne3 {[%clk 0:00:35.5]}
29... Ndc5 {[%clk 0:01:09.2]} 30. Bxf8 {[%clk 0:00:28.9]} 30... Rxf8 {[%clk
0:00:48.5]} 31. Nd6 {[%clk 0:00:28.7]} 31... a3 {[%clk 0:00:35.2]} 32. Ng4
{[%clk 0:00:28.1]} 32... h5 {[%clk 0:00:34.3]} 33. Nh6+ {[%clk 0:00:28]} 33...
Kh7 {[%clk 0:00:34.7]} 34. Nhxf7 {[%clk 0:00:25.1]} 34... Kg8 {[%clk 0:00:28.6]}
35. Nxc8 {[%clk 0:00:20.9]} 35... Rfxc8 {[%clk 0:00:24.5]} 36. Nd6 {[%clk
0:00:21.3]} 36... Rc7 {[%clk 0:00:21.9]} 37. h4 {[%clk 0:00:21.5]} 37... Kf8
{[%clk 0:00:19.8]} 38. g3 {[%clk 0:00:21.7]} 38... Ra4 {[%clk 0:00:18.5]} 39.
Rb1 {[%clk 0:00:21.3]} 39... Nd4 {[%clk 0:00:15.2]} 40. Bg2 {[%clk 0:00:19.7]}
40... Nde6 {[%clk 0:00:14.7]} 41. Bh3 {[%clk 0:00:19.1]} 41... Nd8 {[%clk
0:00:12.2]} 42. e6 {[%clk 0:00:18.8]} 42... Ndxe6 {[%clk 0:00:12.2]} 43. Bxe6
{[%clk 0:00:19.3]} 43... Nxe6 {[%clk 0:00:11.8]} 44. Rxe6 {[%clk 0:00:20]} 1-0

[Event "Early-Titled-Tuesday-Blitz-January-16-2024"]
[Site "Chess.com"]
[Date "2024.01.16"]
[Round "6"]
[White "UNSTOPPABLE_LEGEND"]
[Black "adotand"]
[Result "0-1"]
[WhiteElo "2517"]
[BlackElo "2871"]
[TimeControl "180+1"]
[EndTime "9:10:47 PST"]
[Termination "adotand won by resignation"]

1. d4 {[%clk 0:03:00.9]} 1... Nf6 {[%clk 0:01:53.3]} 2. c4 {[%clk 0:01:52.8]}
2... g6 {[%clk 0:01:53.3]} 3. Nc3 {[%clk 0:01:52.9]} 3... Bg7 {[%clk 0:01:54]}
4. e4 {[%clk 0:01:53.2]} 4... d6 {[%clk 0:01:54.5]} 5. h3 {[%clk 0:01:53.7]}
5... O-O {[%clk 0:01:52.9]} 6. Be3 {[%clk 0:01:53.8]} 6... a5 {[%clk 0:01:50.9]}
7. Nf3 {[%clk 0:01:52.5]} 7... Nc6 {[%clk 0:01:48.3]} 8. d5 {[%clk 0:01:47.2]}
8... Nb8 {[%clk 0:01:47.9]} 9. Be2 {[%clk 0:01:45.1]} 9... c6 {[%clk 0:01:48.5]}
10. O-O {[%clk 0:01:45.1]} 10... Na6 {[%clk 0:01:49.1]} 11. Rc1 {[%clk 0:01:40]}
11... Bd7 {[%clk 0:01:47.9]} 12. a3 {[%clk 0:01:34.3]} 12... a4 {[%clk
0:01:45.7]} 13. Nd4 {[%clk 0:01:20.3]} 13... Qa5 {[%clk 0:01:42.7]} 14. Bd2
{[%clk 0:01:17.2]} 14... Qb6 {[%clk 0:01:35]} 15. Nc2 {[%clk 0:01:10.7]} 15...
Nc5 {[%clk 0:01:32.8]} 16. Be3 {[%clk 0:01:09.6]} 16... Qxb2 {[%clk 0:01:28.6]}
17. Bd4 {[%clk 0:01:08.1]} 17... Qb6 {[%clk 0:01:27.6]} 18. Rb1 {[%clk
0:01:02.1]} 18... Qa5 {[%clk 0:01:27.7]} 19. Nb4 {[%clk 0:01:00]} 19... Nb3
{[%clk 0:01:26.5]} 20. Be3 {[%clk 0:00:56.6]} 20... c5 {[%clk 0:01:24]} 21. Nba2
{[%clk 0:00:56.3]} 21... Qa6 {[%clk 0:01:11.4]} 22. f4 {[%clk 0:00:55.5]} 22...
e6 {[%clk 0:01:08.3]} 23. e5 {[%clk 0:00:55.2]} 23... Ne8 {[%clk 0:01:08.3]} 24.
Ne4 {[%clk 0:00:44.5]} 24... dxe5 {[%clk 0:00:53.7]} 25. Nxc5 {[%clk 0:00:43.4]}
25... Qa7 {[%clk 0:00:48]} 26. Nxd7 {[%clk 0:00:36.6]} 26... Qxe3+ {[%clk
0:00:47.8]} 27. Kh1 {[%clk 0:00:37.5]} 27... Nd2 {[%clk 0:00:44.7]} 28. Nxf8
{[%clk 0:00:35.2]} 28... Nxf1 {[%clk 0:00:43.6]} 29. Bxf1 {[%clk 0:00:29.7]}
29... Bxf8 {[%clk 0:00:43.4]} 30. dxe6 {[%clk 0:00:29.7]} 30... fxe6 {[%clk
0:00:42.5]} 31. fxe5 {[%clk 0:00:23.7]} 31... Qxe5 {[%clk 0:00:41.2]} 32. Rb5
{[%clk 0:00:17.6]} 32... Qf4 {[%clk 0:00:39.3]} 33. Qd7 {[%clk 0:00:13.1]} 33...
Qxf1+ {[%clk 0:00:36.9]} 34. Kh2 {[%clk 0:00:13]} 34... Bd6+ {[%clk 0:00:37.6]}
35. g3 {[%clk 0:00:12.3]} 35... Qf2+ {[%clk 0:00:37.7]} 36. Kh1 {[%clk
0:00:12.9]} 36... Qe1+ {[%clk 0:00:37.7]} 37. Kg2 {[%clk 0:00:12.7]} 37... Qxg3+
{[%clk 0:00:38]} 38. Kf1 {[%clk 0:00:13.6]} 38... Qf3+ {[%clk 0:00:36.5]} 39.
Ke1 {[%clk 0:00:14.1]} 39... Qf7 {[%clk 0:00:31]} 40. Qxf7+ {[%clk 0:00:13]}
40... Kxf7 {[%clk 0:00:31.9]} 41. Rxb7+ {[%clk 0:00:13.9]} 41... Kf6 {[%clk
0:00:32.6]} 42. Nc3 {[%clk 0:00:13.5]} 42... Bxa3 {[%clk 0:00:32.6]} 43. Ne4+
{[%clk 0:00:13.3]} 43... Ke5 {[%clk 0:00:33.2]} 44. Nc3 {[%clk 0:00:13.6]} 44...
Nd6 {[%clk 0:00:33.6]} 45. Rc7 {[%clk 0:00:11.4]} 45... Bb4 {[%clk 0:00:33.4]}
46. Kd2 {[%clk 0:00:11.5]} 46... Ne4+ {[%clk 0:00:34.1]} 0-1

[Event "Early-Titled-Tuesday-Blitz-January-16-2024"]
[Site "Chess.com"]
[Date "2024.01.16"]
[Round "6"]
[White "dasatcu90"]
[Black "ATM622"]
[Result "0-1"]
[WhiteElo "2292"]
[BlackElo "2496"]
[TimeControl "180+1"]
[EndTime "9:10:48 PST"]
[Termination "ATM622 won on time"]

1. d4 {[%clk 0:03:00.9]} 1... Nf6 {[%clk 0:02:54.3]} 2. Nf3 {[%clk 0:03:01.1]}
2... d5 {[%clk 0:02:54.4]} 3. e3 {[%clk 0:03:01.1]} 3... e6 {[%clk 0:02:54.7]}
4. Bd3 {[%clk 0:03:01.4]} 4... c5 {[%clk 0:02:55]} 5. c3 {[%clk 0:03:01.9]} 5...
Nc6 {[%clk 0:02:55]} 6. Nbd2 {[%clk 0:03:02.1]} 6... Be7 {[%clk 0:02:55.2]} 7.
O-O {[%clk 0:03:02.7]} 7... O-O {[%clk 0:02:55.4]} 8. Qe2 {[%clk 0:03:02.1]}
8... Qc7 {[%clk 0:02:50.6]} 9. dxc5 {[%clk 0:03:00.8]} 9... Bxc5 {[%clk
0:02:49.9]} 10. e4 {[%clk 0:03:01.7]} 10... e5 {[%clk 0:02:34.9]} 11. exd5
{[%clk 0:02:55.6]} 11... Nxd5 {[%clk 0:02:29.7]} 12. Bxh7+ {[%clk 0:02:45.2]}
12... Kxh7 {[%clk 0:02:29.7]} 13. Qe4+ {[%clk 0:02:44.4]} 13... f5 {[%clk
0:02:26.3]} 14. Qxd5 {[%clk 0:02:44.1]} 14... Be7 {[%clk 0:02:22.8]} 15. Nc4
{[%clk 0:02:26.4]} 15... e4 {[%clk 0:02:17.8]} 16. Ng5+ {[%clk 0:02:18.2]} 16...
Bxg5 {[%clk 0:02:06.3]} 17. Bxg5 {[%clk 0:02:19.1]} 17... f4 {[%clk 0:01:33.2]}
18. Qxe4+ {[%clk 0:02:14.6]} 18... Bf5 {[%clk 0:01:32.7]} 19. Qxf4 {[%clk
0:02:14.3]} 19... Qxf4 {[%clk 0:01:31.5]} 20. Bxf4 {[%clk 0:02:14.2]} 20... Bd3
{[%clk 0:01:31.7]} 21. Bd6 {[%clk 0:02:05.2]} 21... Rfd8 {[%clk 0:01:31.2]} 22.
Rfd1 {[%clk 0:01:37.3]} 22... Bxc4 {[%clk 0:01:30.6]} 23. b3 {[%clk 0:01:27.8]}
23... Bf7 {[%clk 0:01:29.4]} 24. Bf4 {[%clk 0:01:17.2]} 24... a5 {[%clk
0:01:25.5]} 25. Bc7 {[%clk 0:01:04.4]} 25... Rxd1+ {[%clk 0:01:23.4]} 26. Rxd1
{[%clk 0:01:05.3]} 26... a4 {[%clk 0:01:24]} 27. bxa4 {[%clk 0:01:01.5]} 27...
Rxa4 {[%clk 0:01:23.2]} 28. h3 {[%clk 0:00:52.8]} 28... Bxa2 {[%clk 0:01:19.3]}
29. Bg3 {[%clk 0:00:33.7]} 29... b5 {[%clk 0:01:10.6]} 30. Rd6 {[%clk
0:00:28.1]} 30... Ne7 {[%clk 0:01:03.1]} 31. Rd7 {[%clk 0:00:26.7]} 31... Re4
{[%clk 0:00:55.1]} 32. Bd6 {[%clk 0:00:20.7]} 32... Nf5 {[%clk 0:00:51.5]} 33.
Bf8 {[%clk 0:00:16.9]} 33... Re8 {[%clk 0:00:48.8]} 34. Bc5 {[%clk 0:00:15.5]}
34... Be6 {[%clk 0:00:40.1]} 35. Rb7 {[%clk 0:00:14.8]} 35... Bc4 {[%clk
0:00:38.6]} 36. g4 {[%clk 0:00:15.2]} 36... Nh4 {[%clk 0:00:35]} 37. f4 {[%clk
0:00:13.4]} 37... Re2 {[%clk 0:00:33.2]} 38. f5 {[%clk 0:00:07.7]} 38... Nf3+
{[%clk 0:00:31.6]} 39. Kf1 {[%clk 0:00:06.8]} 39... Re7+ {[%clk 0:00:31.4]} 40.
Kf2 {[%clk 0:00:06.6]} 40... Rxb7 {[%clk 0:00:30.9]} 41. Kxf3 {[%clk 0:00:07.3]}
41... Rd7 {[%clk 0:00:30]} 42. g5 {[%clk 0:00:06.5]} 42... Rd3+ {[%clk
0:00:29.5]} 43. Kf4 {[%clk 0:00:06.4]} 43... Rxc3 {[%clk 0:00:29.7]} 44. h4
{[%clk 0:00:06]} 44... Be2 {[%clk 0:00:29]} 45. g6+ {[%clk 0:00:04.4]} 45... Kg8
{[%clk 0:00:28.1]} 0-1

[Event "Early-Titled-Tuesday-Blitz-January-16-2024"]
[Site "Chess.com"]
[Date "2024.01.16"]
[Round "6"]
[White "Chempiblinka"]
[Black "tusplingher"]
[Result "1-0"]
[WhiteElo "2289"]
[BlackElo "2476"]
[TimeControl "180+1"]
[EndTime "9:10:50 PST"]
[Termination "Chempiblinka won by resignation"]

1. Nf3 {[%clk 0:02:59.7]} 1... Nf6 {[%clk 0:02:58.1]} 2. g3 {[%clk 0:03:00.6]}
2... b5 {[%clk 0:02:56.9]} 3. Bg2 {[%clk 0:02:59.8]} 3... d5 {[%clk 0:02:57.1]}
4. O-O {[%clk 0:02:59.5]} 4... e6 {[%clk 0:02:55.1]} 5. b3 {[%clk 0:02:59.4]}
5... Be7 {[%clk 0:02:48.8]} 6. Bb2 {[%clk 0:02:59.8]} 6... O-O {[%clk
0:02:46.7]} 7. d3 {[%clk 0:03:00.3]} 7... Nbd7 {[%clk 0:02:39.2]} 8. Nbd2 {[%clk
0:03:00.8]} 8... a5 {[%clk 0:02:36.6]} 9. e4 {[%clk 0:02:58.4]} 9... c6 {[%clk
0:02:32]} 10. c4 {[%clk 0:02:35.3]} 10... bxc4 {[%clk 0:02:21.7]} 11. dxc4
{[%clk 0:02:34.4]} 11... Rb8 {[%clk 0:02:08.8]} 12. exd5 {[%clk 0:02:27.6]}
12... cxd5 {[%clk 0:02:06.4]} 13. cxd5 {[%clk 0:02:13.3]} 13... Nxd5 {[%clk
0:02:04.2]} 14. Nc4 {[%clk 0:02:13.2]} 14... a4 {[%clk 0:01:51]} 15. Nfe5 {[%clk
0:02:13.1]} 15... Nxe5 {[%clk 0:01:47.6]} 16. Bxe5 {[%clk 0:02:11.2]} 16... Rb4
{[%clk 0:01:34.8]} 17. Rc1 {[%clk 0:01:29.5]} 17... axb3 {[%clk 0:01:20]} 18.
axb3 {[%clk 0:01:30.4]} 18... Ba6 {[%clk 0:01:15.9]} 19. h4 {[%clk 0:01:15.2]}
19... Qd7 {[%clk 0:01:06.1]} 20. Re1 {[%clk 0:01:12]} 20... Rd8 {[%clk
0:01:04.4]} 21. h5 {[%clk 0:01:01.5]} 21... h6 {[%clk 0:00:58.6]} 22. Qg4 {[%clk
0:00:57.9]} 22... Nf6 {[%clk 0:00:46.7]} 23. Qh3 {[%clk 0:00:40.9]} 23... Rxb3
{[%clk 0:00:34.8]} 24. Na5 {[%clk 0:00:35]} 24... Ra3 {[%clk 0:00:20.4]} 25. Nc6
{[%clk 0:00:33.7]} 25... Re8 {[%clk 0:00:20]} 26. Red1 {[%clk 0:00:31.3]} 26...
Rd3 {[%clk 0:00:16.6]} 27. Re1 {[%clk 0:00:25.8]} 27... Bb7 {[%clk 0:00:11.4]}
28. Nxe7+ {[%clk 0:00:25.7]} 28... Qxe7 {[%clk 0:00:10.8]} 29. Bxb7 {[%clk
0:00:25.7]} 29... Qxb7 {[%clk 0:00:10.3]} 30. Bxf6 {[%clk 0:00:26.4]} 30... gxf6
{[%clk 0:00:10.4]} 31. Qg4+ {[%clk 0:00:27.1]} 31... Kh7 {[%clk 0:00:06.6]} 32.
Qf4 {[%clk 0:00:25.3]} 32... Qe7 {[%clk 0:00:02.4]} 33. Rc7 {[%clk 0:00:24]}
33... Rd7 {[%clk 0:00:02.9]} 34. Rxd7 {[%clk 0:00:22.3]} 34... Qxd7 {[%clk
0:00:03.8]} 35. Qxf6 {[%clk 0:00:22.6]} 35... Rg8 {[%clk 0:00:04.5]} 36. Qe5
{[%clk 0:00:21]} 36... Rg7 {[%clk 0:00:04.5]} 37. Qe4+ {[%clk 0:00:16.1]} 37...
Kg8 {[%clk 0:00:04.5]} 38. Rb1 {[%clk 0:00:15]} 38... f6 {[%clk 0:00:04.2]} 39.
Rb8+ {[%clk 0:00:14.6]} 39... Kf7 {[%clk 0:00:04.6]} 40. Rb7 {[%clk 0:00:14.8]}
40... Ke8 {[%clk 0:00:02.6]} 41. Rxd7 {[%clk 0:00:14.1]} 41... Kxd7 {[%clk
0:00:03.5]} 42. Qb7+ {[%clk 0:00:14.1]} 1-0

[Event "Early-Titled-Tuesday-Blitz-January-16-2024"]
[Site "Chess.com"]
[Date "2024.01.16"]
[Round "6"]
[White "I_am_Javi"]
[Black "Jumbo"]
[Result "0-1"]
[WhiteElo "2779"]
[BlackElo "2932"]
[TimeControl "180+1"]
[EndTime "9:10:51 PST"]
[Termination "Jumbo won on time"]

1. e4 {[%clk 0:03:00.9]} 1... c5 {[%clk 0:02:57.4]} 2. Nf3 {[%clk 0:03:00.6]}
2... d6 {[%clk 0:02:57.9]} 3. d4 {[%clk 0:03:01.2]} 3... cxd4 {[%clk 0:02:58.8]}
4. Nxd4 {[%clk 0:03:01.8]} 4... Nf6 {[%clk 0:02:59.5]} 5. Nc3 {[%clk 0:03:02.5]}
5... Nc6 {[%clk 0:03:00.1]} 6. Bc4 {[%clk 0:03:02.8]} 6... e6 {[%clk 0:03:00.2]}
7. Be3 {[%clk 0:03:02.3]} 7... Bd7 {[%clk 0:02:58.4]} 8. Bb3 {[%clk 0:03:02.6]}
8... a6 {[%clk 0:02:58.4]} 9. f3 {[%clk 0:02:59]} 9... Na5 {[%clk 0:02:56]} 10.
g4 {[%clk 0:02:57]} 10... h6 {[%clk 0:02:48.7]} 11. Qd2 {[%clk 0:02:52.4]} 11...
b5 {[%clk 0:02:47.1]} 12. h4 {[%clk 0:02:50.1]} 12... Qc7 {[%clk 0:02:41.8]} 13.
O-O-O {[%clk 0:02:46.5]} 13... Nc4 {[%clk 0:02:00.2]} 14. Bxc4 {[%clk
0:02:44.9]} 14... Qxc4 {[%clk 0:02:01.1]} 15. Kb1 {[%clk 0:02:44.8]} 15... g6
{[%clk 0:01:55.4]} 16. Nce2 {[%clk 0:01:35.6]} 16... e5 {[%clk 0:01:18.3]} 17.
Nb3 {[%clk 0:01:34.2]} 17... Be6 {[%clk 0:01:18.9]} 18. Nc3 {[%clk 0:01:07.8]}
18... a5 {[%clk 0:01:09.8]} 19. g5 {[%clk 0:00:31.2]} 19... hxg5 {[%clk
0:00:38.3]} 20. hxg5 {[%clk 0:00:32.1]} 20... Rxh1 {[%clk 0:00:38.6]} 21. Rxh1
{[%clk 0:00:32.8]} 21... Nh5 {[%clk 0:00:39]} 22. Rd1 {[%clk 0:00:33.4]} 22...
a4 {[%clk 0:00:35.4]} 23. Nc1 {[%clk 0:00:33.4]} 23... Rc8 {[%clk 0:00:30.6]}
24. a3 {[%clk 0:00:27.3]} 24... Be7 {[%clk 0:00:25]} 25. Qd3 {[%clk 0:00:27.1]}
25... b4 {[%clk 0:00:21.3]} 26. axb4 {[%clk 0:00:18.4]} 26... Qxb4 {[%clk
0:00:18.9]} 27. Qb5+ {[%clk 0:00:12.4]} 27... Qxb5 {[%clk 0:00:17.6]} 28. Nxb5
{[%clk 0:00:13.3]} 28... Kd7 {[%clk 0:00:13.3]} 29. Na3 {[%clk 0:00:10.8]} 29...
Nf4 {[%clk 0:00:12.4]} 30. Bxf4 {[%clk 0:00:08.1]} 30... exf4 {[%clk 0:00:13.3]}
31. Rg1 {[%clk 0:00:07.4]} 31... d5 {[%clk 0:00:11.4]} 32. exd5 {[%clk
0:00:07.4]} 32... Bxd5 {[%clk 0:00:12.3]} 33. Rd1 {[%clk 0:00:05.9]} 33... Kc6
{[%clk 0:00:12.7]} 34. Nd3 {[%clk 0:00:05.5]} 34... Bd6 {[%clk 0:00:11]} 35. Rf1
{[%clk 0:00:03.2]} 35... Re8 {[%clk 0:00:11]} 36. c4 {[%clk 0:00:03.4]} 36...
Be6 {[%clk 0:00:11]} 37. Kc2 {[%clk 0:00:03.2]} 37... Bf5 {[%clk 0:00:11.4]} 38.
Kd2 {[%clk 0:00:03.5]} 38... Re3 {[%clk 0:00:12]} 39. Nc1 {[%clk 0:00:02.6]}
39... Bb4+ {[%clk 0:00:12.2]} 40. Kd1 {[%clk 0:00:02.7]} 40... Kc5 {[%clk
0:00:11.8]} 0-1

[Event "Early-Titled-Tuesday-Blitz-January-16-2024"]
[Site "Chess.com"]
[Date "2024.01.16"]
[Round "6"]
[White "emeli_chess"]
[Black "lefonghua"]
[Result "0-1"]
[WhiteElo "2450"]
[BlackElo "2651"]
[TimeControl "180+1"]
[EndTime "9:10:51 PST"]
[Termination "lefonghua won by resignation"]

1. d4 {[%clk 0:03:00.9]} 1... Nf6 {[%clk 0:03:00.1]} 2. c4 {[%clk 0:02:59.9]}
2... c5 {[%clk 0:03:00.5]} 3. d5 {[%clk 0:02:59.5]} 3... e6 {[%clk 0:03:01.1]}
4. Nc3 {[%clk 0:02:59.1]} 4... exd5 {[%clk 0:03:01.6]} 5. cxd5 {[%clk
0:02:59.8]} 5... d6 {[%clk 0:03:02.3]} 6. Nf3 {[%clk 0:02:59.7]} 6... g6 {[%clk
0:03:02.8]} 7. h3 {[%clk 0:02:57.8]} 7... Bg7 {[%clk 0:03:02.5]} 8. e4 {[%clk
0:02:58.4]} 8... a6 {[%clk 0:03:00.1]} 9. a4 {[%clk 0:02:57.3]} 9... Nbd7 {[%clk
0:02:58.2]} 10. Bd3 {[%clk 0:02:56.7]} 10... Nh5 {[%clk 0:02:58.2]} 11. O-O
{[%clk 0:02:54.5]} 11... Ne5 {[%clk 0:02:58.3]} 12. Nxe5 {[%clk 0:02:53.5]}
12... Bxe5 {[%clk 0:02:59.2]} 13. Be3 {[%clk 0:02:47.7]} 13... Qh4 {[%clk
0:02:54.3]} 14. Ne2 {[%clk 0:02:13.1]} 14... Bxh3 {[%clk 0:02:40.9]} 15. f4
{[%clk 0:02:12.4]} 15... Qg4 {[%clk 0:02:04.3]} 16. Rf2 {[%clk 0:02:11.5]} 16...
Bxb2 {[%clk 0:01:56.8]} 17. Rb1 {[%clk 0:02:06.8]} 17... Bg7 {[%clk 0:01:56.6]}
18. Kh2 {[%clk 0:01:55.9]} 18... Bxg2 {[%clk 0:01:52.7]} 19. Rxg2 {[%clk
0:01:55.8]} 19... Qh4+ {[%clk 0:01:52.6]} 20. Kg1 {[%clk 0:01:54.9]} 20... Qe7
{[%clk 0:01:29.6]} 21. Ng3 {[%clk 0:01:37.2]} 21... Nf6 {[%clk 0:01:22.3]} 22.
Nf5 {[%clk 0:01:28]} 22... gxf5 {[%clk 0:01:20.7]} 23. Rxg7 {[%clk 0:01:28.1]}
23... fxe4 {[%clk 0:01:15.4]} 24. Be2 {[%clk 0:01:20.4]} 24... Kf8 {[%clk
0:00:48.2]} 25. Rg2 {[%clk 0:01:09.3]} 25... h5 {[%clk 0:00:47.6]} 26. Qb3
{[%clk 0:00:55.2]} 26... Rb8 {[%clk 0:00:47.2]} 27. Qb2 {[%clk 0:00:55.1]} 27...
b5 {[%clk 0:00:39.9]} 28. axb5 {[%clk 0:00:54.5]} 28... axb5 {[%clk 0:00:40.4]}
29. Bxb5 {[%clk 0:00:52.3]} 29... h4 {[%clk 0:00:33.3]} 30. Kh2 {[%clk
0:00:46.9]} 30... h3 {[%clk 0:00:32.8]} 31. Rg3 {[%clk 0:00:46.7]} 31... Rh4
{[%clk 0:00:15.5]} 32. Qe2 {[%clk 0:00:45.6]} 32... Qb7 {[%clk 0:00:10.8]} 33.
Rgg1 {[%clk 0:00:42.6]} 33... Qxd5 {[%clk 0:00:07.9]} 34. Bc4 {[%clk 0:00:42]}
34... Qa8 {[%clk 0:00:08.1]} 35. Rxb8+ {[%clk 0:00:39.7]} 35... Qxb8 {[%clk
0:00:09]} 36. Qf2 {[%clk 0:00:38.2]} 36... Ng4+ {[%clk 0:00:08.2]} 37. Rxg4
{[%clk 0:00:36.1]} 37... Rxg4 {[%clk 0:00:09.1]} 38. Kxh3 {[%clk 0:00:33.6]}
38... Qc8 {[%clk 0:00:09.6]} 39. f5 {[%clk 0:00:32.1]} 39... Rg8 {[%clk
0:00:09.2]} 40. Qf4 {[%clk 0:00:30.8]} 40... Rh8+ {[%clk 0:00:06.2]} 41. Kg3
{[%clk 0:00:29.7]} 41... Qd7 {[%clk 0:00:06.4]} 42. Bd5 {[%clk 0:00:25.2]} 42...
Qe7 {[%clk 0:00:03.9]} 43. Qg5 {[%clk 0:00:22]} 43... Rg8 {[%clk 0:00:03.6]} 44.
f6 {[%clk 0:00:19.1]} 44... Rxg5+ {[%clk 0:00:03.2]} 45. Bxg5 {[%clk 0:00:18.9]}
45... Qe5+ {[%clk 0:00:03.7]} 0-1

[Event "Early-Titled-Tuesday-Blitz-January-16-2024"]
[Site "Chess.com"]
[Date "2024.01.16"]
[Round "6"]
[White "InitiatingASC"]
[Black "FMVolodymyrSakun"]
[Result "1-0"]
[WhiteElo "2424"]
[BlackElo "2549"]
[TimeControl "180+1"]
[EndTime "9:10:52 PST"]
[Termination "InitiatingASC won by checkmate"]

1. d4 {[%clk 0:03:00.9]} 1... g6 {[%clk 0:02:59.6]} 2. Bf4 {[%clk 0:02:57.6]}
2... Bg7 {[%clk 0:02:58.3]} 3. Nf3 {[%clk 0:02:56.9]} 3... c5 {[%clk 0:02:58.1]}
4. e3 {[%clk 0:02:56.4]} 4... d6 {[%clk 0:02:56.1]} 5. c3 {[%clk 0:02:55.3]}
5... Nd7 {[%clk 0:02:55.4]} 6. Nbd2 {[%clk 0:02:55.2]} 6... Ngf6 {[%clk
0:02:49.6]} 7. h3 {[%clk 0:02:55.5]} 7... O-O {[%clk 0:02:49.3]} 8. Be2 {[%clk
0:02:54.8]} 8... b6 {[%clk 0:02:47.8]} 9. O-O {[%clk 0:02:54.7]} 9... Bb7 {[%clk
0:02:47.7]} 10. a4 {[%clk 0:02:54.9]} 10... a6 {[%clk 0:02:46.3]} 11. Re1 {[%clk
0:02:42.6]} 11... Ne4 {[%clk 0:02:41.5]} 12. Nxe4 {[%clk 0:02:42.1]} 12... Bxe4
{[%clk 0:02:41.1]} 13. Nd2 {[%clk 0:02:39.7]} 13... Bb7 {[%clk 0:02:35.9]} 14.
Bf3 {[%clk 0:02:38.2]} 14... Qc8 {[%clk 0:02:34.5]} 15. Qe2 {[%clk 0:02:21.9]}
15... d5 {[%clk 0:02:12.8]} 16. Nb3 {[%clk 0:02:11.6]} 16... e5 {[%clk
0:02:05.1]} 17. dxe5 {[%clk 0:02:04.9]} 17... Nxe5 {[%clk 0:02:05.1]} 18. Bxe5
{[%clk 0:01:49.2]} 18... Bxe5 {[%clk 0:02:04.8]} 19. Red1 {[%clk 0:01:49.8]}
19... Rd8 {[%clk 0:01:37.3]} 20. Rd2 {[%clk 0:01:48.7]} 20... Bc6 {[%clk
0:01:13.5]} 21. a5 {[%clk 0:01:42.6]} 21... bxa5 {[%clk 0:01:04.1]} 22. Nxc5
{[%clk 0:01:34.7]} 22... Bb5 {[%clk 0:01:01.4]} 23. Nd3 {[%clk 0:01:34.9]} 23...
Rb8 {[%clk 0:00:44.8]} 24. Rxa5 {[%clk 0:01:18.2]} 24... Qf5 {[%clk 0:00:41.2]}
25. Bg4 {[%clk 0:00:19.3]} 25... Qe4 {[%clk 0:00:36.2]} 26. Bf3 {[%clk
0:00:19.3]} 26... Qf5 {[%clk 0:00:25.5]} 27. Bg4 {[%clk 0:00:19.1]} 27... Qf6
{[%clk 0:00:24.5]} 28. Bf3 {[%clk 0:00:19]} 28... Bc7 {[%clk 0:00:18.7]} 29. Ra2
{[%clk 0:00:17.7]} 29... Bb6 {[%clk 0:00:17.9]} 30. Qd1 {[%clk 0:00:17.2]} 30...
Bc4 {[%clk 0:00:16.8]} 31. b3 {[%clk 0:00:15.4]} 31... Bb5 {[%clk 0:00:14.4]}
32. Rac2 {[%clk 0:00:11.7]} 32... a5 {[%clk 0:00:11.7]} 33. Nf4 {[%clk
0:00:11.3]} 33... Bc6 {[%clk 0:00:09.2]} 34. Nxd5 {[%clk 0:00:11.1]} 34... Bxd5
{[%clk 0:00:09.1]} 35. Bxd5 {[%clk 0:00:11.4]} 35... Kg7 {[%clk 0:00:08.7]} 36.
Bc4 {[%clk 0:00:11.6]} 36... Rxd2 {[%clk 0:00:06.7]} 37. Rxd2 {[%clk 0:00:11.7]}
37... Qc6 {[%clk 0:00:06.8]} 38. Rd7 {[%clk 0:00:11.5]} 38... Rb7 {[%clk
0:00:07]} 39. Rxb7 {[%clk 0:00:11]} 39... Qxb7 {[%clk 0:00:07]} 40. Qd5 {[%clk
0:00:11.8]} 40... Qc7 {[%clk 0:00:06.6]} 41. g3 {[%clk 0:00:10.2]} 41... h5
{[%clk 0:00:06.2]} 42. h4 {[%clk 0:00:10.4]} 42... Bc5 {[%clk 0:00:06.3]} 43.
Kg2 {[%clk 0:00:10.2]} 43... Be7 {[%clk 0:00:06.3]} 44. Qxf7+ {[%clk 0:00:10]}
44... Kh8 {[%clk 0:00:06.1]} 45. Qg8# {[%clk 0:00:10.3]} 1-0